Department Family,Entity,Date,Expense type,Expense area,Supplier,Transaction number,Amount
BEIS,ACAS,04/01/2022,EXTERNAL LEARNING,ODHR,PEOPLE RESULTS LTD,POIN132,"3,348.00"
BEIS,ACAS,04/01/2022,EXTERNAL LEARNING,ODHR,ZOE EGERICKX LTD,POIN133,"3,000.00"
BEIS,ACAS,01/01/2022,CONTRACTOR OFF-PAYROLL IN IR35,DELIVERY,GOLDSTONE MEDIA LIMITED,POIN134,"13,020.00"
BEIS,ACAS,23/12/2021,SOFTWARE & LICENCES,DDAT,FRESHWORKS INC,POIN139,"32,318.92"
BEIS,ACAS,23/12/2021,SOFTWARE & LICENCES,DDAT,FRESHWORKS INC,POIN139,"1,539.00"
BEIS,ACAS,05/01/2022,IA FEES,FEP,GOVERNMENT INTERNAL AUDIT AGENCY,POIN140,"13,650.00"
BEIS,ACAS,24/12/2021,EXTERNAL LEARNING,ODHR,HEMSLEY FRASER GROUP LTD,POIN141,"2,400.00"
BEIS,ACAS,06/01/2022,AGENCY STAFF,ODHR,ALEXANDER MANN SOLUTIONS LTD,POIN142,"1,512.14"
BEIS,ACAS,14/12/2021,TRAINERS & GUEST SPEAKERS,ODHR,ERNST & YOUNG LLP,POIN143,"10,266.76"
BEIS,ACAS,06/01/2022,EXTERNAL LEARNING,ODHR,CIVIL SERVICE COLLEGE LIMITED,POIN144,714
BEIS,ACAS,06/01/2022,EXTERNAL LEARNING,ODHR,CIVIL SERVICE COLLEGE LIMITED,POIN144,714
BEIS,ACAS,31/12/2021,PROFESSIONAL FEES,DDAT,VERSION 1 SOLUTIONS LTD,POIN145,"6,730.00"
BEIS,ACAS,07/01/2022,EXTERNAL LEARNING,ODHR,CONTENT DESIGN LONDON LTD,POIN146,834
BEIS,ACAS,07/01/2022,PROFESSIONAL FEES,DDAT,RESTORE TECHNOLOGY,POIN147,"1,194.00"
BEIS,ACAS,04/01/2022,PROFESSIONAL FEES,DDAT,CIO - OFFICIAL LLP,POIN148,"19,380.00"
BEIS,ACAS,08/01/2022,PROFESSIONAL FEES,DDAT,Canon (UK) Ltd,POIN149,420
BEIS,ACAS,11/01/2022,PROFESSIONAL FEES,DDAT,RESTORE TECHNOLOGY,POIN150,534
BEIS,ACAS,30/11/2021,PROFESSIONAL FEES,DELIVERY,LANGUAGE EMPIRE LTD,POIN151,"3,029.25"
BEIS,ACAS,30/11/2021,PROFESSIONAL FEES,DELIVERY,LANGUAGE EMPIRE LTD,POIN151,"3,029.26"
BEIS,ACAS,10/01/2022,REPROGRAPHICS,DELIVERY,CITY SPRINT UK LIMITED,POIN152,"9,540.00"
BEIS,ACAS,31/12/2021,MANAGED SERVICE Off-PAYROLL WK,DELIVERY,TISSKI LTD,POIN153,"10,260.00"
BEIS,ACAS,13/01/2022,AGENCY STAFF,ODHR,ALEXANDER MANN SOLUTIONS LTD,POIN154,"2,016.19"
BEIS,ACAS,13/01/2022,CONTRACTOR OFF-PAYROLL IN IR35,DELIVERY,ALEXANDER MANN SOLUTIONS LTD,POIN155,"1,416.65"
BEIS,ACAS,13/01/2022,CONTRACTOR OFF-PAYROLL IN IR35,DELIVERY,ALEXANDER MANN SOLUTIONS LTD,POIN156,"3,202.85"
BEIS,ACAS,31/12/2021,MANAGED SERVICE Off-PAYROLL WK,DELIVERY,OPENCAST SOFTWARE EUROPE LTD,POIN157,"58,548.60"
BEIS,ACAS,13/01/2022,CONTRACTOR OFF-PAYROLL IN IR35,DELIVERY,ALEXANDER MANN SOLUTIONS LTD,POIN158,"7,560.72"
BEIS,ACAS,13/01/2022,EXTERNAL LEARNING - CSL,ODHR,KPMG LLP,POIN159,380.4
BEIS,ACAS,10/12/2021,EXTERNAL LEARNING - CSL,ODHR,CABINET OFFICE,POIN160,"5,400.00"
BEIS,ACAS,16/12/2021,PROFESSIONAL FEES,FEP,GOVERNMENT PROPERTY AGENCY,POIN161,360
BEIS,ACAS,17/01/2022,EXTERNAL LEARNING,ODHR,PSYSOFT LTD,POIN162,386.4
BEIS,ACAS,30/12/2021,AGENCY STAFF,ODHR,ALEXANDER MANN SOLUTIONS LTD,POIN163,"2,520.24"
BEIS,ACAS,12/11/2021,TRAINERS & GUEST SPEAKERS,ODHR,THEALEXMANNERS,POIN164,499
BEIS,ACAS,18/01/2022,EXTERNAL LEARNING,ODHR,MHR INTERNATIONAL UK LTD,POIN165,460.8
BEIS,ACAS,06/01/2022,EXTERNAL LEARNING,ODHR,CIPP,POIN166,460.8
BEIS,ACAS,06/01/2022,EXTERNAL LEARNING,ODHR,CIPP,POIN167,460.8
BEIS,ACAS,04/01/2022,PERSONAL EXPENSE,FEP,NAME / DESCRIPTION WITHHELD,EXPS167,400
BEIS,ACAS,07/01/2022,EXTERNAL LEARNING,ODHR,CIPP,POIN168,"1,914.00"
BEIS,ACAS,14/01/2022,PROFESSIONAL FEES,DDAT,BIG BLUE DOOR,POIN169,900
BEIS,ACAS,08/12/2021,PROFESSIONAL FEES,DDAT,CIO - OFFICIAL LLP,POIN170,"6,840.00"
BEIS,ACAS,17/01/2022,COMPUTER HARDWARE,DDAT,RESTORE TECHNOLOGY,POIN171,702
BEIS,ACAS,17/01/2022,COMPUTER HARDWARE,DDAT,RESTORE TECHNOLOGY,POIN171,78
BEIS,ACAS,20/01/2022,AGENCY STAFF,ODHR,ALEXANDER MANN SOLUTIONS LTD,POIN172,"1,512.14"
BEIS,ACAS,20/01/2022,AGENCY STAFF,ODHR,ALEXANDER MANN SOLUTIONS LTD,POIN172,"1,008.10"
BEIS,ACAS,01/12/2021,PROFESSIONAL FEES,FEP,GOVERNMENT PROPERTY AGENCY,POIN173,360
BEIS,ACAS,14/01/2022,GOVT SOLICITORS FEES,CO,GOVERNMENT LEGAL DEPARTMENT,POIN174,"3,659.04"
BEIS,ACAS,20/01/2022,CONTRACTOR OFF-PAYROLL IN IR35,DELIVERY,ALEXANDER MANN SOLUTIONS LTD,POIN175,"3,780.36"
BEIS,ACAS,20/01/2022,CONTRACTOR OFF-PAYROLL IN IR35,DELIVERY,ALEXANDER MANN SOLUTIONS LTD,POIN176,"3,187.46"
BEIS,ACAS,21/01/2022,EXTERNAL LEARNING,ODHR,SNAP SURVEYS LTD,POIN178,210
BEIS,ACAS,21/01/2022,EXTERNAL LEARNING,ODHR,SNAP SURVEYS LTD,POIN178,210
BEIS,ACAS,21/01/2022,EXTERNAL LEARNING,ODHR,SNAP SURVEYS LTD,POIN179,210
BEIS,ACAS,21/01/2022,EXTERNAL LEARNING,ODHR,SNAP SURVEYS LTD,POIN179,210
BEIS,ACAS,24/01/2022,EXTERNAL LEARNING,ODHR,TRACY MOUNTAIN CONSULTANCY LIMITED,POIN180,600
BEIS,ACAS,20/12/2021,FACILITIES MANAGEMENT,FEP,FLEXIFORM BUSINESS FURNITURE LTD,POIN181,"2,034.00"
BEIS,ACAS,17/01/2022,PROFESSIONAL FEES,DDAT,RESTORE TECHNOLOGY,POIN182,"1,380.00"
BEIS,ACAS,12/01/2022,PROFESSIONAL FEES,DDAT,VERSION 1 SOLUTIONS LTD,POIN183,"3,592.15"
BEIS,ACAS,07/01/2022,PERSONAL EXPENSE,DELIVERY,NAME / DESCRIPTION WITHHELD,EXPS184,795.69
BEIS,ACAS,09/12/2021,SOFTWARE & LICENCES,FEP,IRIS SOFTWARE LTD,POIN184,"1,115.03"
BEIS,ACAS,09/12/2021,SOFTWARE & LICENCES,FEP,IRIS SOFTWARE LTD,POIN186,974.98
BEIS,ACAS,10/12/2021,SOFTWARE & LICENCES,FEP,IRIS SOFTWARE LTD,POIN189,"1,313.44"
BEIS,ACAS,30/11/2021,PROFESSIONAL FEES,DDAT,VERSION 1 SOLUTIONS LTD,POIN190,"10,000.46"
BEIS,ACAS,25/01/2022,SOFTWARE & LICENCES,DDAT,SOLARWINDS SOFTWARE EUROPE,POIN191,"6,515.64"
BEIS,ACAS,25/01/2022,SOFTWARE & LICENCES,DDAT,SOLARWINDS SOFTWARE EUROPE,POIN191,723.96
BEIS,ACAS,25/01/2022,SOFTWARE & LICENCES,DDAT,SOLARWINDS SOFTWARE EUROPE,POIN191,575.64
BEIS,ACAS,25/01/2022,SOFTWARE & LICENCES,DDAT,SOLARWINDS SOFTWARE EUROPE,POIN191,63.96
BEIS,ACAS,25/01/2022,SOFTWARE & LICENCES,DDAT,SOLARWINDS SOFTWARE EUROPE,POIN191,"6,785.64"
BEIS,ACAS,25/01/2022,SOFTWARE & LICENCES,DDAT,SOLARWINDS SOFTWARE EUROPE,POIN191,753.96
BEIS,ACAS,25/01/2022,SOFTWARE & LICENCES,DDAT,SOLARWINDS SOFTWARE EUROPE,POIN191,791.64
BEIS,ACAS,25/01/2022,SOFTWARE & LICENCES,DDAT,SOLARWINDS SOFTWARE EUROPE,POIN191,87.96
BEIS,ACAS,25/01/2022,SOFTWARE & LICENCES,DDAT,SOLARWINDS SOFTWARE EUROPE,POIN191,"1,192.32"
BEIS,ACAS,25/01/2022,SOFTWARE & LICENCES,DDAT,SOLARWINDS SOFTWARE EUROPE,POIN191,132.48
BEIS,ACAS,26/01/2022,PROFESSIONAL FEES,DDAT,PHOENIX SOFTWARE LTD,POIN192,"147,842.82"
BEIS,ACAS,26/01/2022,PROFESSIONAL FEES,DDAT,PHOENIX SOFTWARE LTD,POIN192,"16,426.98"
BEIS,ACAS,26/01/2022,SOFTWARE & LICENCES,DDAT,PHOENIX SOFTWARE LTD,POIN193,"24,163.06"
BEIS,ACAS,26/01/2022,SOFTWARE & LICENCES,DDAT,PHOENIX SOFTWARE LTD,POIN193,"2,684.88"
BEIS,ACAS,23/12/2021,SOFTWARE & LICENCES,DDAT,SNAP SURVEYS LTD,POIN194,714
BEIS,ACAS,27/01/2022,AGENCY STAFF,ODHR,ALEXANDER MANN SOLUTIONS LTD,POIN195,"2,520.24"
BEIS,ACAS,31/12/2021,PROFESSIONAL FEES,DELIVERY,LANGUAGE EMPIRE LTD,POIN196,"2,420.82"
BEIS,ACAS,31/12/2021,PROFESSIONAL FEES,DELIVERY,LANGUAGE EMPIRE LTD,POIN196,"2,420.83"
BEIS,ACAS,27/01/2022,CONTRACTOR OFF-PAYROLL IN IR35,DELIVERY,ALEXANDER MANN SOLUTIONS LTD,POIN197,"3,780.36"
BEIS,ACAS,31/12/2021,PUBLIC TRANSPORT & PARKING,ODHR,TRAINLINE.COM LTD,PINV223,261.2
BEIS,ACAS,31/12/2021,PUBLIC TRANSPORT & PARKING,STRATEGY,TRAINLINE.COM LTD,PINV223,143
BEIS,ACAS,31/12/2021,PUBLIC TRANSPORT & PARKING,STRATEGY,TRAINLINE.COM LTD,PINV223,63.8
BEIS,ACAS,31/12/2021,PUBLIC TRANSPORT & PARKING,STRATEGY,TRAINLINE.COM LTD,PINV223,143
BEIS,ACAS,31/12/2021,PUBLIC TRANSPORT & PARKING,STRATEGY,TRAINLINE.COM LTD,PINV223,63.8
BEIS,ACAS,31/12/2021,PUBLIC TRANSPORT & PARKING,ODHR,TRAINLINE.COM LTD,PINV223,74.6
BEIS,ACAS,31/12/2021,PUBLIC TRANSPORT & PARKING,SPPC,TRAINLINE.COM LTD,PINV223,280
BEIS,ACAS,31/12/2021,PUBLIC TRANSPORT & PARKING,DELIVERY,TRAINLINE.COM LTD,PINV223,236
BEIS,ACAS,31/12/2021,PUBLIC TRANSPORT & PARKING,STRATEGY,TRAINLINE.COM LTD,PINV223,187.7
BEIS,ACAS,31/12/2021,PUBLIC TRANSPORT & PARKING,STRATEGY,TRAINLINE.COM LTD,PINV223,69.1
BEIS,ACAS,31/12/2021,PUBLIC TRANSPORT & PARKING,STRATEGY,TRAINLINE.COM LTD,PINV223,-133
BEIS,ACAS,31/12/2021,PUBLIC TRANSPORT & PARKING,STRATEGY,TRAINLINE.COM LTD,PINV223,-53.8
BEIS,ACAS,31/12/2021,PUBLIC TRANSPORT & PARKING,ODHR,TRAINLINE.COM LTD,PINV223,-206.5
BEIS,ACAS,31/12/2021,PUBLIC TRANSPORT & PARKING,ODHR,TRAINLINE.COM LTD,PINV223,216.5
BEIS,ACAS,31/12/2021,PUBLIC TRANSPORT & PARKING,ODHR,TRAINLINE.COM LTD,PINV223,-64.6
BEIS,ACAS,31/12/2021,PUBLIC TRANSPORT & PARKING,DDAT,TRAINLINE.COM LTD,PINV223,75
BEIS,ACAS,31/12/2021,PUBLIC TRANSPORT & PARKING,DDAT,TRAINLINE.COM LTD,PINV223,62.35
BEIS,ACAS,31/12/2021,PUBLIC TRANSPORT & PARKING,DDAT,TRAINLINE.COM LTD,PINV223,-84.5
BEIS,ACAS,31/12/2021,PUBLIC TRANSPORT & PARKING,STRATEGY,TRAINLINE.COM LTD,PINV223,-123
BEIS,ACAS,31/12/2021,PUBLIC TRANSPORT & PARKING,STRATEGY,TRAINLINE.COM LTD,PINV223,-63.8
BEIS,ACAS,31/12/2021,PUBLIC TRANSPORT & PARKING,DDAT,TRAINLINE.COM LTD,PINV223,15.1
BEIS,ACAS,31/12/2021,PUBLIC TRANSPORT & PARKING,SPPC,TRAINLINE.COM LTD,PINV223,-270
BEIS,ACAS,22/12/2021,LOSSES,ODHR,GOVERNMENT LEGAL DEPARTMENT,PINV224,"2,500.00"
BEIS,ACAS,30/12/2021,AGENCY STAFF,SPPC,ALEXANDER MANN SOLUTIONS LTD,PINV225,895.1
BEIS,ACAS,30/11/2021,HOTEL EXPENSES,SOUTH&LONDON,CORPORATE TRAVEL MANAGEMENTLIMITED,PINV226,125.4
BEIS,ACAS,30/11/2021,HOTEL EXPENSES,SOUTH&LONDON,CORPORATE TRAVEL MANAGEMENTLIMITED,PINV226,145.4
BEIS,ACAS,30/11/2021,HOTEL EXPENSES,NORTH&MID,CORPORATE TRAVEL MANAGEMENTLIMITED,PINV226,121.92
BEIS,ACAS,30/11/2021,HOTEL EXPENSES,SOUTH&LONDON,CORPORATE TRAVEL MANAGEMENTLIMITED,PINV226,72.62
BEIS,ACAS,30/11/2021,HOTEL EXPENSES,WALES&MID,CORPORATE TRAVEL MANAGEMENTLIMITED,PINV226,0.96
BEIS,ACAS,30/11/2021,HOTEL EXPENSES,WALES&MID,CORPORATE TRAVEL MANAGEMENTLIMITED,PINV226,0.96
BEIS,ACAS,30/11/2021,HOTEL EXPENSES,WALES&MID,CORPORATE TRAVEL MANAGEMENTLIMITED,PINV226,0.96
BEIS,ACAS,30/11/2021,HOTEL EXPENSES,SOUTH&LONDON,CORPORATE TRAVEL MANAGEMENTLIMITED,PINV226,0.96
BEIS,ACAS,30/11/2021,HOTEL EXPENSES,DELIVERY,CORPORATE TRAVEL MANAGEMENTLIMITED,PINV226,179.12
BEIS,ACAS,30/11/2021,HOTEL EXPENSES,DELIVERY,CORPORATE TRAVEL MANAGEMENTLIMITED,PINV226,268.12
BEIS,ACAS,30/11/2021,HOTEL EXPENSES,SOUTH&LONDON,CORPORATE TRAVEL MANAGEMENTLIMITED,PINV226,145.4
BEIS,ACAS,30/11/2021,HOTEL EXPENSES,SOUTH&LONDON,CORPORATE TRAVEL MANAGEMENTLIMITED,PINV226,0.96
BEIS,ACAS,30/11/2021,HOTEL EXPENSES,SOUTH&LONDON,CORPORATE TRAVEL MANAGEMENTLIMITED,PINV226,45.4
BEIS,ACAS,30/11/2021,HOTEL EXPENSES,ODHR,CORPORATE TRAVEL MANAGEMENTLIMITED,PINV226,115.12
BEIS,ACAS,30/11/2021,HOTEL EXPENSES,SOUTH&LONDON,CORPORATE TRAVEL MANAGEMENTLIMITED,PINV226,125.4
BEIS,ACAS,30/11/2021,HOTEL EXPENSES,SPPC,CORPORATE TRAVEL MANAGEMENTLIMITED,PINV226,541.12
BEIS,ACAS,30/11/2021,HOTEL EXPENSES,ODHR,CORPORATE TRAVEL MANAGEMENTLIMITED,PINV226,229.12
BEIS,ACAS,30/11/2021,HOTEL EXPENSES,SOUTH&LONDON,CORPORATE TRAVEL MANAGEMENTLIMITED,PINV226,72.62
BEIS,ACAS,30/11/2021,HOTEL EXPENSES,DELIVERY,CORPORATE TRAVEL MANAGEMENTLIMITED,PINV226,1.12
BEIS,ACAS,25/12/2021,MOBILE PHONES,DDAT,TELEFONICA UK LTD (O2),PINV229,537.71
BEIS,ACAS,25/12/2021,MOBILE PHONES,DDAT,TELEFONICA UK LTD (O2),PINV229,59.75
BEIS,ACAS,30/12/2021,PHOTOCOPIERS,DDAT,Canon (UK) Ltd,PINV230,"1,673.26"
BEIS,ACAS,30/12/2021,PHOTOCOPIERS,DDAT,Canon (UK) Ltd,PINV230,185.92
BEIS,ACAS,01/01/2022,TELEPHONES,DDAT,GTT,PINV232,"1,195.94"
BEIS,ACAS,01/01/2022,TELEPHONES,DDAT,GTT,PINV232,132.89
BEIS,ACAS,01/01/2022,TELEPHONES,DDAT,GTT,PINV232,0.55
BEIS,ACAS,01/01/2022,TELEPHONES,DDAT,GTT,PINV232,0.06
BEIS,ACAS,01/01/2022,PUBLICITY,STRATEGY,CISION,PINV234,"2,670.00"
BEIS,ACAS,06/01/2022,AGENCY STAFF,NORTH&MID,ALEXANDER MANN SOLUTIONS LTD,PINV235,379.37
BEIS,ACAS,01/12/2021,HOME WORKER TELEPHONE CHRG,DDAT,GTT,PINV237,139.76
BEIS,ACAS,01/12/2021,HOME WORKER TELEPHONE CHRG,DDAT,GTT,PINV237,"1,257.80"
BEIS,ACAS,01/12/2021,TELEPHONES,DDAT,GTT,PINV238,"4,209.57"
BEIS,ACAS,01/12/2021,TELEPHONES,DDAT,GTT,PINV238,"37,886.06"
BEIS,ACAS,25/11/2021,AGENCY STAFF,FEP,PORTFOLIO PAYROLL LTD,PINV245,831.6
BEIS,ACAS,07/12/2021,SOFTWARE & LICENCES,DDAT,GROUPE SHAREGATE INC,PINV246,"4,495.00"
BEIS,ACAS,31/12/2021,OTHER PAYROLL COSTS,CENTRE,EDENRED (UK GROUP ) LTD,PINV248,"1,975.00"
BEIS,ACAS,07/01/2022,VENUE HIRE (REC VAT),WALES&MID,CALDER CONFERENCES LTD,PINV249,280
BEIS,ACAS,07/01/2022,VENUE HIRE (REC VAT),WALES&MID,CALDER CONFERENCES LTD,PINV249,300
BEIS,ACAS,07/01/2022,CATERING,WALES&MID,CALDER CONFERENCES LTD,PINV249,28.69
BEIS,ACAS,07/01/2022,VENUE HIRE (REC VAT),WALES&MID,CALDER CONFERENCES LTD,PINV249,132
BEIS,ACAS,07/01/2022,VENUE HIRE (REC VAT),WALES&MID,CALDER CONFERENCES LTD,PINV249,24
BEIS,ACAS,07/01/2022,CATERING,WALES&MID,CALDER CONFERENCES LTD,PINV249,67.6
BEIS,ACAS,07/01/2022,CATERING,WALES&MID,CALDER CONFERENCES LTD,PINV249,185.6
BEIS,ACAS,07/01/2022,VENUE HIRE (REC VAT),WALES&MID,CALDER CONFERENCES LTD,PINV249,200
BEIS,ACAS,07/01/2022,VENUE HIRE (REC VAT),WALES&MID,CALDER CONFERENCES LTD,PINV249,200
BEIS,ACAS,31/12/2021,HOTEL EXPENSES,SOUTH&LONDON,CORPORATE TRAVEL MANAGEMENTLIMITED,PINV250,73.85
BEIS,ACAS,31/12/2021,HOTEL EXPENSES,DDAT,CORPORATE TRAVEL MANAGEMENTLIMITED,PINV250,90.12
BEIS,ACAS,31/12/2021,HOTEL EXPENSES,SOUTH&LONDON,CORPORATE TRAVEL MANAGEMENTLIMITED,PINV250,65.51
BEIS,ACAS,31/12/2021,HOTEL EXPENSES,DDAT,CORPORATE TRAVEL MANAGEMENTLIMITED,PINV250,1.12
BEIS,ACAS,31/12/2021,HOTEL EXPENSES,SOUTH&LONDON,CORPORATE TRAVEL MANAGEMENTLIMITED,PINV250,152.07
BEIS,ACAS,31/12/2021,HOTEL EXPENSES,STRATEGY,CORPORATE TRAVEL MANAGEMENTLIMITED,PINV250,357.28
BEIS,ACAS,31/12/2021,HOTEL EXPENSES,DDAT,CORPORATE TRAVEL MANAGEMENTLIMITED,PINV250,151.12
BEIS,ACAS,31/12/2021,HOTEL EXPENSES,DDAT,CORPORATE TRAVEL MANAGEMENTLIMITED,PINV250,125.02
BEIS,ACAS,31/12/2021,HOTEL EXPENSES,ODHR,CORPORATE TRAVEL MANAGEMENTLIMITED,PINV250,108.02
BEIS,ACAS,31/12/2021,HOTEL EXPENSES,SOUTH&LONDON,CORPORATE TRAVEL MANAGEMENTLIMITED,PINV250,227.63
BEIS,ACAS,31/12/2021,HOTEL EXPENSES,SOUTH&LONDON,CORPORATE TRAVEL MANAGEMENTLIMITED,PINV250,187.63
BEIS,ACAS,01/01/2022,TELEPHONES,DDAT,GTT,PINV252,"9,223.73"
BEIS,ACAS,01/01/2022,TELEPHONES,DDAT,GTT,PINV252,"1,024.86"
BEIS,ACAS,01/01/2022,TELEPHONES,DDAT,GTT,PINV252,426.92
BEIS,ACAS,01/01/2022,TELEPHONES,DDAT,GTT,PINV252,47.43
BEIS,ACAS,31/12/2021,PROFESSIONAL FEES,DDAT,TISSKI LTD,PINV255,"5,016.00"
BEIS,ACAS,04/01/2022,PROFESSIONAL FEES,DDAT,TECHNOJOBS LTD,PINV256,468
BEIS,ACAS,01/01/2022,TELEPHONES,DDAT,CENTURYLINK COMMUNICATIONS UK LIMITED,PINV258,"4,355.06"
BEIS,ACAS,01/01/2022,TELEPHONES,DDAT,CENTURYLINK COMMUNICATIONS UK LIMITED,PINV258,483.9
BEIS,ACAS,01/01/2022,TELEPHONES,DDAT,CENTURYLINK COMMUNICATIONS UK LIMITED,PINV258,"4,386.47"
BEIS,ACAS,01/01/2022,TELEPHONES,DDAT,CENTURYLINK COMMUNICATIONS UK LIMITED,PINV258,487.38
BEIS,ACAS,01/01/2022,SOFTWARE & LICENCES,DDAT,CENTURYLINK COMMUNICATIONS UK LIMITED,PINV258,"13,173.84"
BEIS,ACAS,01/01/2022,SOFTWARE & LICENCES,DDAT,CENTURYLINK COMMUNICATIONS UK LIMITED,PINV258,"1,463.76"
BEIS,ACAS,01/01/2022,SOFTWARE & LICENCES,DDAT,CENTURYLINK COMMUNICATIONS UK LIMITED,PINV258,"1,317.38"
BEIS,ACAS,01/01/2022,SOFTWARE & LICENCES,DDAT,CENTURYLINK COMMUNICATIONS UK LIMITED,PINV258,146.38
BEIS,ACAS,01/01/2022,SOFTWARE & LICENCES,DDAT,CENTURYLINK COMMUNICATIONS UK LIMITED,PINV258,322.76
BEIS,ACAS,01/01/2022,SOFTWARE & LICENCES,DDAT,CENTURYLINK COMMUNICATIONS UK LIMITED,PINV258,35.87
BEIS,ACAS,01/01/2022,PROFESSIONAL FEES,DDAT,CENTURYLINK COMMUNICATIONS UK LIMITED,PINV258,"9,788.89"
BEIS,ACAS,05/01/2022,PROFESSIONAL FEES,DDAT,W3 PARTNERSHIP LTD,PINV261,"2,358.18"
BEIS,ACAS,10/01/2022,REFUNDS,SOUTH&LONDON,BIRMINGHAM HIPPODROME,PINV264,255
BEIS,ACAS,10/01/2022,REFUNDS,NORTH&MID,EVIOSYS PROMOTIONAL PACKAGING,PINV267,365
BEIS,ACAS,11/11/2021,REFUNDS,WALES&MID,ANDERSONBRECON (UK) LTD,PINV268,"1,284.00"
BEIS,ACAS,09/01/2022,MOBILE PHONES,DDAT,TELEFONICA UK LTD (O2),PINV269,"5,201.23"
BEIS,ACAS,09/01/2022,MOBILE PHONES,DDAT,TELEFONICA UK LTD (O2),PINV269,577.91
BEIS,ACAS,11/01/2022,MEMBERSHIP FEES,NORTH&MID,NORTH EAST CHAMBER OF COMMERCE,PINV271,"2,340.00"
BEIS,ACAS,13/01/2022,PUBLICITY,STRATEGY,APS -ALLIED PUBLICITY SERVICE,PINV272,"5,000.00"
BEIS,ACAS,26/11/2021,PROFFESIONAL/SPECIALIST ADVICE,ODHR,MAYVIN LTD,PINV273,"36,855.00"
BEIS,ACAS,20/12/2021,PROFFESIONAL/SPECIALIST ADVICE,ODHR,MAYVIN LTD,PINV274,"3,510.00"
BEIS,ACAS,13/01/2022,AGENCY STAFF,NORTH&MID,ALEXANDER MANN SOLUTIONS LTD,PINV275,413.86
BEIS,ACAS,14/01/2022,VENUE HIRE (REC VAT),SOUTH&LONDON,CALDER CONFERENCES LTD,PINV276,456
BEIS,ACAS,25/10/2021,PROFESSIONAL FEES,FEP,GOVERNMENT PROPERTY AGENCY,PINV277,"1,261.44"
BEIS,ACAS,12/01/2022,REFUNDS,WALES&MID,CITIZENS ADVICE SHROPSHIRE,PINV278,255
BEIS,ACAS,12/01/2022,REFUNDS,SOUTH&LONDON,CORDEK LIMITED,PINV279,525
BEIS,ACAS,13/01/2022,AGENCY STAFF,SPPC,ALEXANDER MANN SOLUTIONS LTD,PINV282,895.1
BEIS,ACAS,17/01/2022,REFUNDS,SOUTH&LONDON,UNIVERSITY OF CAMBRIDGE,PINV285,255
BEIS,ACAS,13/01/2022,MAINTENANCE (TFM2),FEP,GOVERNMENT PROPERTY AGENCY,PINV286,"2,010.00"
BEIS,ACAS,17/01/2022,OTHER PAYROLL COSTS,CENTRE,EDENRED (UK GROUP ) LTD,PINV288,"2,075.00"
BEIS,ACAS,14/01/2022,GOVT SOLICITORS FEES,ODHR,GOVERNMENT LEGAL DEPARTMENT,PINV289,"8,595.24"
BEIS,ACAS,08/01/2022,MEMBERSHIP FEES,ODHR,THE WHITEHALL & INDUSTRY GROUP,PINV290,"6,660.00"
BEIS,ACAS,11/01/2022,SOFTWARE & LICENCES,FEP,ATAMIS LTD,PINV292,360
BEIS,ACAS,20/01/2022,AGENCY STAFF,NORTH&MID,ALEXANDER MANN SOLUTIONS LTD,PINV294,508.7
BEIS,ACAS,20/01/2022,AGENCY STAFF,NORTH&MID,ALEXANDER MANN SOLUTIONS LTD,PINV295,517.32
BEIS,ACAS,30/11/2021,PUBLICATIONS AND PERIODICALS,STRATEGY,GOAVA INTERNATIONAL AB,PINV296,"5,948.25"
BEIS,ACAS,30/11/2021,PUBLICITY,NORTH&MID,KEMPS PUBLISHING LTD,PINV297,780
BEIS,ACAS,21/01/2022,VENUE HIRE (REC VAT),SOUTH&LONDON,CALDER CONFERENCES LTD,PINV298,259
BEIS,ACAS,21/01/2022,VENUE HIRE (REC VAT),SOUTH&LONDON,CALDER CONFERENCES LTD,PINV298,560
BEIS,ACAS,21/01/2022,VENUE HIRE (REC VAT),SOUTH&LONDON,CALDER CONFERENCES LTD,PINV298,95.04
BEIS,ACAS,21/01/2022,CHILDCARE VOUCHERS,FEP,EDENRED CHILDCARE VOUCHERS LTD,PINV299,"2,486.00"
BEIS,ACAS,20/01/2022,AGENCY STAFF,SPPC,ALEXANDER MANN SOLUTIONS LTD,PINV300,901.32
BEIS,ACAS,20/01/2022,AGENCY STAFF,SPPC,ALEXANDER MANN SOLUTIONS LTD,PINV302,621.6
BEIS,ACAS,14/01/2022,COURIERS,DDAT,RESTORE TECHNOLOGY,PINV304,"3,366.00"
BEIS,ACAS,24/01/2022,SOFTWARE & LICENCES,DELIVERY,ZOOM VIDEO COMMUNICATIONS INC,PINV305,82.74
BEIS,ACAS,24/01/2022,SOFTWARE & LICENCES,DELIVERY,ZOOM VIDEO COMMUNICATIONS INC,PINV305,137.9
BEIS,ACAS,24/01/2022,SOFTWARE & LICENCES,ODHR,ZOOM VIDEO COMMUNICATIONS INC,PINV305,27.58
BEIS,ACAS,24/01/2022,SOFTWARE & LICENCES,DELIVERY,ZOOM VIDEO COMMUNICATIONS INC,PINV305,137.9
BEIS,ACAS,24/01/2022,SOFTWARE & LICENCES,DELIVERY,ZOOM VIDEO COMMUNICATIONS INC,PINV305,13.79
BEIS,ACAS,24/01/2022,SOFTWARE & LICENCES,SCOTLAND,ZOOM VIDEO COMMUNICATIONS INC,PINV305,110.32
BEIS,ACAS,24/01/2022,SOFTWARE & LICENCES,NORTH&MID,ZOOM VIDEO COMMUNICATIONS INC,PINV305,68.95
BEIS,ACAS,24/01/2022,SOFTWARE & LICENCES,NORTH&MID,ZOOM VIDEO COMMUNICATIONS INC,PINV305,124.11
BEIS,ACAS,24/01/2022,SOFTWARE & LICENCES,NORTH&MID,ZOOM VIDEO COMMUNICATIONS INC,PINV305,124.11
BEIS,ACAS,24/01/2022,SOFTWARE & LICENCES,NORTH&MID,ZOOM VIDEO COMMUNICATIONS INC,PINV305,96.52
BEIS,ACAS,24/01/2022,SOFTWARE & LICENCES,WALES&MID,ZOOM VIDEO COMMUNICATIONS INC,PINV305,151.69
BEIS,ACAS,24/01/2022,SOFTWARE & LICENCES,WALES&MID,ZOOM VIDEO COMMUNICATIONS INC,PINV305,110.32
BEIS,ACAS,24/01/2022,SOFTWARE & LICENCES,SOUTH&LONDON,ZOOM VIDEO COMMUNICATIONS INC,PINV305,96.52
BEIS,ACAS,24/01/2022,SOFTWARE & LICENCES,SOUTH&LONDON,ZOOM VIDEO COMMUNICATIONS INC,PINV305,137.9
BEIS,ACAS,24/01/2022,SOFTWARE & LICENCES,SOUTH&LONDON,ZOOM VIDEO COMMUNICATIONS INC,PINV305,124.11
BEIS,ACAS,24/01/2022,SOFTWARE & LICENCES,SOUTH&LONDON,ZOOM VIDEO COMMUNICATIONS INC,PINV305,96.52
BEIS,ACAS,24/01/2022,SOFTWARE & LICENCES,NORTH&MID,ZOOM VIDEO COMMUNICATIONS INC,PINV305,13.79
BEIS,ACAS,24/01/2022,TELEPHONES,DDAT,CENTURYLINK COMMUNICATIONS UK LIMITED,PINV306,"1,123.68"
BEIS,ACAS,31/12/2021,PROFESSIONAL FEES,DDAT,VERSION 1 SOLUTIONS LTD,PINV307,"3,729.42"
BEIS,ACAS,25/01/2022,REFUNDS,SOUTH&LONDON,CAMBRIDGESHIRE COUNTY COUNCIL,PINV309,700
BEIS,ACAS,25/01/2022,REFUNDS,SOUTH&LONDON,MORSON TECHNICAL SERVICES,PINV312,255
BEIS,ACAS,01/01/2022,SOFTWARE & LICENCES,DDAT,CENTURYLINK COMMUNICATIONS UK LIMITED,PINV313,"4,396.20"
BEIS,ACAS,01/01/2022,SOFTWARE & LICENCES,DDAT,CENTURYLINK COMMUNICATIONS UK LIMITED,PINV313,488.46
BEIS,ACAS,01/01/2022,TELEPHONES,DDAT,CENTURYLINK COMMUNICATIONS UK LIMITED,PINV313,"2,758.17"
BEIS,ACAS,01/01/2022,TELEPHONES,DDAT,CENTURYLINK COMMUNICATIONS UK LIMITED,PINV313,306.47
BEIS,ACAS,31/12/2021,PUBLICATIONS AND PERIODICALS,STRATEGY,RESTORE RECORDS MANAGEMENT,PINV314,344.44
BEIS,ACAS,27/01/2022,AGENCY STAFF,NORTH&MID,ALEXANDER MANN SOLUTIONS LTD,PINV318,638.03
BEIS,ACAS,27/01/2022,AGENCY STAFF,NORTH&MID,ALEXANDER MANN SOLUTIONS LTD,PINV319,310.39
BEIS,ACAS,27/01/2022,AGENCY STAFF,NORTH&MID,ALEXANDER MANN SOLUTIONS LTD,PINV320,517.32
BEIS,ACAS,17/01/2022,TRAINERS & GUEST SPEAKERS,ODHR,OPTIME LTD,PINV321,300
BEIS,ACAS,02/11/2021,RECOGNITION PAYMENTS,CENTRE,HMRC,PINV323,"56,565.28"
BEIS,ACAS,02/11/2021,RECOGNITION PAYMENTS,CENTRE,HMRC,PINV323,334.9
BEIS,ACAS,31/01/2022,PUBLICITY,ACAS NATIONAL DELIVERY,Facebk Xa4kcb3dv2,H332120220201kuf,700
BEIS,ACAS,31/01/2022,PUBLICITY,ACAS NATIONAL DELIVERY,Facebk Gjxxcctcv2,H332120220201lax,293.8
BEIS,ACAS,31/01/2022,VENUE HIRE,WALES & MIDLANDS - WEST,Mercure Southgate Hote,H332120220201pmn,264
BEIS,ACAS,28/01/2022,PUBLICITY,ACAS NATIONAL STRATEGY,Facebk Lddqcb7cv2,H332120220129iff,700
BEIS,ACAS,25/01/2022,PUBLICITY,ACAS NATIONAL STRATEGY,Facebk Ax7t5ctcv2,H332120220126jxs,83.05
BEIS,ACAS,25/01/2022,PUBLICITY,ACAS NATIONAL DELIVERY,Facebk Ax7t5ctcv2,H332120220126jxs,616.95
BEIS,ACAS,24/01/2022,PUBLICITY,ACAS NATIONAL STRATEGY,Facebk Fktt3bkcv2,H332120220125bcu,284.48
BEIS,ACAS,24/01/2022,PUBLICITY,ACAS NATIONAL DELIVERY,Facebk Fktt3bkcv2,H332120220125bcu,415.52
BEIS,ACAS,24/01/2022,PUBLICITY,ACAS NATIONAL STRATEGY,Twitter Online Ads,H332120220125has,418.87
BEIS,ACAS,24/01/2022,STAFF RECRUITMENT COSTS,ACAS NATIONAL STRATEGY,Linkedin 6557499896,H332120220125nof,447.84
BEIS,ACAS,24/01/2022,PUBLICITY,ACAS NATIONAL DELIVERY,Facebk 3l3b4b3dv2,H332120220125xsb,411.22
BEIS,ACAS,24/01/2022,PUBLICITY,ACAS NATIONAL STRATEGY,Facebk 3l3b4b3dv2,H332120220125xsb,288.78
BEIS,ACAS,21/01/2022,POSTAGE,WALES & MIDLANDS - WEST,Royal Mail Group Ltd,H332120220122jxt,1206
BEIS,ACAS,21/01/2022,VENUE HIRE,LONDON & SE ENGLAND - S E,Village Hotel Farnborough,H332120220122kby,905.63
BEIS,ACAS,21/01/2022,PUBLICITY,ACAS NATIONAL STRATEGY,Facebk E7q3ybtcv2,H332120220122lhd,286.15
BEIS,ACAS,21/01/2022,PUBLICITY,ACAS NATIONAL DELIVERY,Facebk E7q3ybtcv2,H332120220122lhd,413.85
BEIS,ACAS,21/01/2022,MEMBERSHIP FEES,WALES & MIDLANDS - WEST,Black Country Chamber Of,H332120220122sei,547.2
BEIS,ACAS,20/01/2022,STATIONERY & CONSUMABLES,WALES & MIDLANDS - WEST,Posturite Ltd,H332120220121dve,250.34
BEIS,ACAS,20/01/2022,PUBLICITY,ACAS NATIONAL STRATEGY,Facebk Gp3qxa3dv2,H332120220121zeb,308.64
BEIS,ACAS,20/01/2022,PUBLICITY,ACAS NATIONAL DELIVERY,Facebk Gp3qxa3dv2,H332120220121zeb,391.36
BEIS,ACAS,19/01/2022,ARBITRATORS T&S,ACAS NATIONAL DELIVERY,One4all,H332120220120tez,450
BEIS,ACAS,19/01/2022,CSOHS FEES,FINANCE ESTATES & PEOPLE,Www Backcs Co Uk,H332120220120ump,1319.7
BEIS,ACAS,18/01/2022,PUBLICITY,ACAS NATIONAL STRATEGY,Facebk Vs4kgbxcv2,H332120220119dxr,545.22
BEIS,ACAS,18/01/2022,PUBLICITY,ACAS NATIONAL DELIVERY,Facebk Vs4kgbxcv2,H332120220119dxr,154.78
BEIS,ACAS,18/01/2022,RECORDS STORAGE,CERTIFICATION OFFICE,Kellys Storage Ltd,H332120220119iws,339.06
BEIS,ACAS,17/01/2022,COURIERS,IT SERVICES ,Mach 1 Couriers,H332120220118clf,650.53
BEIS,ACAS,17/01/2022,COMPUTER SOFTWARE,IT SERVICES ,Atlassian,H332120220118trw,339.4
BEIS,ACAS,17/01/2022,PUBLICITY,ACAS NATIONAL STRATEGY,Facebk 85d6uakcv2,H332120220118uyi,700
BEIS,ACAS,13/01/2022,STAFF RECRUITMENT COSTS,ACAS NATIONAL STRATEGY,Guardian News & Media,H332120220114dpl,690
BEIS,ACAS,12/01/2022,VENUE HIRE,WALES & MIDLANDS - WEST,Doubletree By Hilton Bri,H332120220113ykp,370
BEIS,ACAS,10/01/2022,RECORDS STORAGE,CERTIFICATION OFFICE,Kellys Storage Ltd,H332120220111uub,339.06
BEIS,ACAS,07/01/2022,CSOHS FEES,FINANCE ESTATES & PEOPLE,Posturite Ltd,H332120220109mbm,947.94
BEIS,ACAS,05/01/2022,FACILITIES MANAGEMENT,NORTH OF ENGLAND - YORKSHIRE,Data Solutions 201,H332120220106dox,334.39
BEIS,ACAS,05/01/2022,STAFF RECRUITMENT COSTS,ACAS NATIONAL STRATEGY,Haymarket Media Group,H332120220106tnq,1254
BEIS,ACAS,04/01/2022,OTHER PROFESSIONAL FEES,IT SERVICES ,Aws Emea,H332120220105wfs,1893.75
